Cogmind - Beta 15 @@@ ROGUE MODE // 2025.09.12 @ 04:01:39 Player: Godsword Result: Self-destructed Performance ------------- Evolutions (0) 0 Regions Visited (3) 600 Robots Destroyed (7) 35 Value Destroyed (48) 48 Prototype IDs (0) 0 Alien Tech Used (0) 0 Bonus (300) 300 TOTAL SCORE: 983 Bonus ------- Registered with UFD 300 Cogmind --------- Core Integrity 168/250 Matter 285/300 Energy 100/100 System Corruption 1% Temperature Cool (0) Movement Rolling (115) Ox1 Location -9/Scraptown Parts ------- > --- POWER (1) -------- (None) > --- PROPULSION (2) --- Compact Wheel Compact Wheel > --- UTILITY (2) ------ High-capacity Storage Unit Improved Terrain Scanner > --- WEAPON (2) ------- Mini Grenade Launcher Heavy Hammer > --- INVENTORY (20) --- Light Ion Engine Light Ion Engine Compact Wheel Compact Wheel Armored Wheel Cryofiber Web Improved Heat Sink Small Storage Unit High-capacity Matter Pod (147) Expert System Expert System ECM Suite ECM Suite ECM Suite Tractor Beam Mace Heavy Hammer Peak State ------------ > --- POWER ------------ Light Ion Engine > --- PROPULSION ------- Compact Wheel Compact Wheel > --- UTILITY ---------- High-capacity Storage Unit Improved Terrain Scanner > --- WEAPON ----------- Mini Grenade Launcher Heavy Hammer > --- INVENTORY -------- Light Ion Engine Light Ion Engine Compact Wheel Compact Wheel Armored Wheel Cryofiber Web Improved Heat Sink Small Storage Unit High-capacity Matter Pod Expert System Expert System ECM Suite ECM Suite ECM Suite Tractor Beam Mace Heavy Hammer [Rating: 14] Favorites ----------- Power Light Ion Engine Engine Light Ion Engine Propulsion Compact Wheel Wheel Compact Wheel Utility Improved Terrain Scanner Device Improved Terrain Scanner Storage Small Storage Unit Weapon Light Assault Rifle Ballistic Gun Light Assault Rifle Launcher Mini Grenade Launcher Impact Weapon Heavy Hammer Build | -11 -10 -10 -9 ------- Run | Yrd Mat Sub Scr Slots Evolved . | . . . . Power . | . . . . Propulsion . | . . . . Utility . | . . . . Weapon . | . . . . Parts Attached 10 | 7 . . 3 Power 1 | 1 . . . Engine 1 | 1 . . . Core . | . . . . Reactor . | . . . . Propulsion 2 | 2 . . . Treads . | . . . . Leg . | . . . . Wheel 2 | 2 . . . Hover . | . . . . Flight . | . . . . Utility 3 | 2 . . 1 Device 1 | 1 . . . Storage 2 | 1 . . 1 Processor . | . . . . Hackware . | . . . . Protection . | . . . . Artifact . | . . . . Weapon 4 | 2 . . 2 Energy Gun . | . . . . Energy Cannon . | . . . . Ballistic Gun 2 | 2 . . . Ballistic Cannon . | . . . . Launcher 1 | . . . 1 Special Weapon . | . . . . Impact Weapon 1 | . . . 1 Slashing Weapon . | . . . . Piercing Weapon . | . . . . Special Melee Weapon . | . . . . Unidentified Prototypes . | . . . . Parts Lost 1 | . . . 1 Power 1 | . . . 1 Propulsion . | . . . . Utility . | . . . . Weapon . | . . . . Highest Loss Streak 1 | . . . 1 To Critical Strikes . | . . . . Average Backups 9 | 2 6 8 12 Power 1 | . 1 2 2 Propulsion 2 | 1 2 2 2 Utility 4 | . 2 4 6 Weapon . | . . . 1 Tool/Special . | . . . . Unused Backups 14 | . . . 14 Power 2 | . . . 2 Propulsion 3 | . . . 3 Utility 7 | . . . 7 Weapon 2 | . . . 2 Tool/Special . | . . . . Average Slot Usage (%) 99 | . 100 100 98 Engine 14 | . 14 14 14 Wheel 28 | . 28 28 28 Device 14 | . 14 14 14 Storage 14 | . 14 14 14 Ballistic Gun 18 | . 28 28 15 Launcher 4 | . . . 6 Impact Weapon 3 | . . . 5 Peak Build Rating 14 | 9 9 9 14 Average Rating 9 | 6 9 9 10 On Entrance 6 | . 9 9 9 Naked Turns . | . . . . Heaviest Build 48 | 11 11 11 48 Greatest Support 32 | 32 32 32 32 Greatest Overweight (x) 1 | . . . 1 Average Overweight (x) . | . . . . Largest Inventory Capacity 20 | 8 8 8 20 Average Capacity 13 | 7 8 8 17 Most Carried 17 | 5 8 8 17 Average Carried 9 | 2 7 8 12 Final Capacity 20 | 8 8 8 20 Final Carried 17 | 5 8 8 17 Class Distribution -------------------- 100% | Mutant Dominant Class ---------------- Mutant | -10/Materials Mutant | -10/Subcaves Mutant | -9/Scraptown Resources | -11 -10 -10 -9 ----------- Run | Yrd Mat Sub Scr Matter Collected 481 | 312 12 . 157 Remotely . | . . . . Salvage Created 219 | 175 19 . 25 Parts 16 | 12 4 . . Haulers Intercepted . | . . . . Recyclers Shooed . | . . . . Parts Field Recycled . | . . . . Retrieved Matter . | . . . . Parts Self-Destructed 2 | . . 2 . Prevented . | . . . . Kills | -11 -10 -10 -9 ------- Run | Yrd Mat Sub Scr Combat Hostiles Destroyed . | . . . . Classes Destroyed 3 | 2 . . 1 Tunneler 6 | 5 1 . . Recycler 1 | 1 . . . Scientist 1 | . . . 1 Best Kill Streak 3 | 3 1 . 1 Combat Bots Only . | . . . . Max Kills in Single Turn 1 | 1 1 . 1 Gunslinging . | . . . . Exploded . | . . . . Melee . | . . . . Uniques/NPCs Destroyed . | . . . . Combat | -11 -10 -10 -9 -------- Run | Yrd Mat Sub Scr Hostile Shots Fired 15 | . . . 15 Missed 4 | . . . 4 Hits 11 | . . . 11 Projectile 11 | . . . 11 Damage Taken 225 | . . . 225 Core 82 | . . . 82 Absorbed by Shields . | . . . . Core Remaining (%) 100 | 100 . . . Volleys Fired 27 | 21 6 . . Largest 2 | 2 2 . . Hottest 40 | 40 40 . . Shots Fired 54 | 42 12 . . Gun 54 | 42 12 . . Cannon . | . . . . Launcher . | . . . . Special . | . . . . Kinetic 54 | 42 12 . . Thermal . | . . . . Explosive . | . . . . Electromagnetic . | . . . . Robot Hit Streak 8 | 8 3 . . Robot Miss Streak 3 | 3 1 . . Penetration Max . | . . . . Secondary Targets . | . . . . Shots Hit Robots 35 | 26 8 . 1 Core Hits 14 | 12 2 . . Critical Kills . | . . . . Critical Parts Destroyed . | . . . . Critical Strikes . | . . . . Melee Attacks 4 | . . . 4 Impact 4 | . . . 4 Slashing . | . . . . Piercing . | . . . . Sneak Attacks 1 | . . . 1 Combat Hostiles . | . . . . Follow-up Attacks . | . . . . Damage Inflicted 362 | 213 61 . 88 Guns 274 | 213 61 . . Cannons . | . . . . Explosions . | . . . . Melee 88 | . . . 88 Ramming . | . . . . Kinetic 274 | 213 61 . . Thermal . | . . . . Explosive . | . . . . Electromagnetic . | . . . . Impact 88 | . . . 88 Slashing . | . . . . Piercing . | . . . . Highest Corruption 1 | . . . 1 Average Corruption 1 | . . . 1 Corruption Purged . | . . . . Corruption Blocked . | . . . . Overload Shots . | . . . . Overflow Damage 48 | . . . 48 Projectiles . | . . . . Explosions . | . . . . Melee 48 | . . . 48 Knockbacks . | . . . . Impact . | . . . . Kinetic . | . . . . Secondary . | . . . . Self-Inflicted Damage . | . . . . Shots . | . . . . Rammed . | . . . . Targets Rammed . | . . . . Kicked . | . . . . Crushed . | . . . . Highest Temperature . | . . . . Average Temperature . | . . . . Received Heat Transfer 36 | . . . 36 Siege Activations . | . . . . Martial Activations . | . . . . Shielding Activations . | . . . . Robots Disrupted . | . . . . Combat Hostiles . | . . . . Robots Corrupted . | . . . . Combat Hostiles . | . . . . Parts Fried 1 | . . . 1 Impact Corruptions 2 | . . . 2 Robots Melted . | . . . . Combat Hostiles . | . . . . Parts Melted . | . . . . Heat Transferred . | . . . . Parts Sabotaged . | . . . . Parts Stolen . | . . . . Parts Stripped . | . . . . Power Chain Reactions . | . . . . Alert | -11 -10 -10 -9 ------- Run | Yrd Mat Sub Scr Maximum Alert Level . | . . . . Low Security (%) 100 | 100 100 . . Level 1 . | . . . . Level 2 . | . . . . Level 3 . | . . . . Level 4 . | . . . . Level 5 . | . . . . High Security . | . . . . Max Security . | . . . . Peak Influence 10 | 10 5 . . Initial . | . . . . Average 1 | 2 . . . Influence Increases 35 | 30 5 . . Destroy 0b10 Robot/NC 35 | 30 5 . . Influence Decreases 35 | 30 5 . . Time Decay 35 | 30 5 . . Squads Dispatched . | . . . . Investigation . | . . . . Extermination . | . . . . Reinforcement . | . . . . Assault . | . . . . Garrison . | . . . . Intercept . | . . . . Searches Triggered . | . . . . Construction Impeded . | . . . . Haulers Reinforced . | . . . . Active Scanning Responses . | . . . . Cargo Convoy Interrupts . | . . . . Stealth | -11 -10 -10 -9 --------- Run | Yrd Mat Sub Scr Distress Signals . | . . . . Communications Jammed . | . . . . Distress Signals . | . . . . Times Spotted 5 | . . . 5 Peak Tracking Total 7 | . . . 7 Tactical Retreats . | . . . . Traps | -11 -10 -10 -9 ------- Run | Yrd Mat Sub Scr Traps Triggered . | . . . . Indirectly . | . . . . Trap Hack Attempts . | . . . . Triggered . | . . . . Disarmed . | . . . . Reprogrammed . | . . . . Reused . | . . . . Traps Extracted . | . . . . Installed . | . . . . Triggered . | . . . . Machines | -11 -10 -10 -9 ---------- Run | Yrd Mat Sub Scr Machines Disabled 2 | . . . 2 Max in Single Turn 1 | . . . 1 Machines Repaired . | . . . . Machines Dismantled . | . . . . Machines Sabotaged . | . . . . Overloaded Fab Kills . | . . . . Hacking | -11 -10 -10 -9 --------- Run | Yrd Mat Sub Scr Machines Accessed . | . . . . Terminals . | . . . . Fabricators . | . . . . Repair Stations . | . . . . Recycling Units . | . . . . Scanalyzers . | . . . . Garrison Access . | . . . . Total Hacks . | . . . . Successful . | . . . . Failed . | . . . . Catastrophic . | . . . . Database Lockouts . | . . . . Manual . | . . . . Terminals . | . . . . Fabricators . | . . . . Repair Stations . | . . . . Recycling Units . | . . . . Scanalyzers . | . . . . Garrison Access . | . . . . Terminal Hacks . | . . . . Fabricator Hacks . | . . . . Repair Station Hacks . | . . . . Recycling Unit Hacks . | . . . . Scanalyzer . | . . . . Garrison Access Hacks . | . . . . Unauthorized Hacks . | . . . . Terminals . | . . . . Fabricators . | . . . . Repair Stations . | . . . . Recycling Units . | . . . . Scanalyzers . | . . . . Garrison Access . | . . . . Data Cores Recovered . | . . . . Used . | . . . . Hacking Detections . | . . . . Full Trace Events . | . . . . Feedback Events . | . . . . Feedback Blocked . | . . . . Robot Schematics Acquired . | . . . . Robots Built . | . . . . Authchips . | . . . . Time . | . . . . Total Robot Build Rating . | . . . . Part Schematics Acquired . | . . . . Parts Built . | . . . . Authchips . | . . . . Time . | . . . . Total Part Build Rating . | . . . . Parts Repaired . | . . . . Time . | . . . . Parts Recycled . | . . . . Recycled Matter . | . . . . Retrieved Matter . | . . . . Retrieved Components . | . . . . Parts Scanalyzed . | . . . . Part Schematics Acquired . | . . . . Parts Damaged . | . . . . Bothacking | -11 -10 -10 -9 ------------ Run | Yrd Mat Sub Scr Used RIF Installer . | . . . . Robots Hacked . | . . . . Non-combat . | . . . . Combat . | . . . . Robot Hacks Applied . | . . . . Relay Couplers Released . | . . . . Fabnet Peak Effective % . | . . . . Robots Rewired . | . . . . Allies Hacked . | . . . . Hacks Repelled . | . . . . Allies | -11 -10 -10 -9 -------- Run | Yrd Mat Sub Scr Total Allies . | . . . . Largest Group . | . . . . Highest-Rated Group . | . . . . Highest-Rated Ally . | . . . . Total Orders . | . . . . Ally Attacks . | . . . . Total Damage . | . . . . Kills . | . . . . Allies Corrupted . | . . . . Allies Melted . | . . . . Intel | -11 -10 -10 -9 ------- Run | Yrd Mat Sub Scr Active Infowar (turns) 534 | 29 50 58 397 Terrain 534 | 29 50 58 397 Robot Analysis Total . | . . . . Derelict Logs Recovered . | . . . . Drone Launches . | . . . . Drone Recoveries . | . . . . Exploration | -11 -10 -10 -9 ------------- Run | Yrd Mat Sub Scr Turns Passed 636 | 131 50 58 397 Spaces Moved 485 | 62 30 59 334 Core 2 | 2 . . . Treads . | . . . . Legs . | . . . . Wheels 483 | 60 30 59 334 Hover . | . . . . Flight . | . . . . Fastest Speed 50 | 50 100 100 100 Average Speed 107 | 98 100 100 111 Slowest Speed 115 | 100 100 100 115 Overloaded Moves . | . . . . Propulsion Burnouts . | . . . . Robots Hopped . | . . . . Potential Cave-ins . | . . . . Cave-ins Triggered 1 | . . . 1 Exploration Rate (%) 14 | 3 12 6 36 Regions Visited 3 Branch Regions 2 Pre-discovered Areas . | . . . . Known Exits Taken . | . . . . Unknown Exits Taken 3 | 1 1 1 . Scrap Searched 3 | . . . 3 Spaces Dug 1 | . . . 1 Terrain Destroyed 1 | . . . 1 Melee 1 | . . . 1 Projectile . | . . . . AOE . | . . . . Terrain Rammed . | . . . . Walls Destroyed . | . . . . Machines Disabled . | . . . . Actions | -11 -10 -10 -9 --------- Run | Yrd Mat Sub Scr Total 545 | 94 40 58 353 Wait . | . . . . Move 482 | 61 29 58 334 Hop . | . . . . Pick Up 18 | 5 4 . 9 Fast Attach 9 | 7 . . 2 Attach . | . . . . Detach . | . . . . Swap 1 | . . . 1 Drop 4 | . 1 . 3 Fire 27 | 21 6 . . Melee 4 | . . . 4 Ram . | . . . . Kick . | . . . . Crush . | . . . . Escape Stasis . | . . . . Rewire . | . . . . Trap . | . . . . Miscellaneous . | . . . . Route ------- -11/Scrapyard -10/Materials (discovered 2 exits: [*Min] / [*Sub]) -10/Subcaves (discovered 2 exits: [*Mat] / [*Scr]) -9/Scraptown History --------- Turn | Location | Event 2 | -11/Scrapyard | Met Revision 17 10 | -11/Scrapyard | Discovered new exit (range 16) 132 | -11/Scrapyard | Entered Materials 133 | -10/Materials | Met a group of wandering Federalists 151 | -10/Materials | Discovered new exit (range 11) 155 | -10/Materials | Discovered new exit (range 7) 182 | -10/Materials | Entered Subcaves 182 | -10/Subcaves | Accompanied by 3 allies 183 | -10/Subcaves | Continued accompanying wandering Federalists (3) 183 | -10/Subcaves | Approached by a straggling Scientist 229 | -10/Subcaves | Scientist uncovered a shortcut to Scraptown 229 | -10/Subcaves | Discovered new exit (range 16) 240 | -10/Subcaves | Entered Scraptown 308 | -9/Scraptown | Build established: Mutant 558 | -9/Scraptown | Visited UFD Registry 558 | -9/Scraptown | Registered with UFD as "Roughforce" 582 | -9/Scraptown | Visited Chapter 10 599 | -9/Scraptown | Visited A0-MCA Data Center 607 | -9/Scraptown | Attacked by Scraptown defenders 614 | -9/Scraptown | Found Prototype Processor 618 | -9/Scraptown | Found Prototype Processor 626 | -9/Scraptown | Crushed by falling debris 637 | -9/Scraptown | Self-destructed Last Messages --------------- member, Roughforce! Open the gate! 00582_ LOCAL NARROWCAST: Chapter 10. If you can't beat 'em, join 'em to beat 'em. 00599_ LOCAL NARROWCAST: A0-MCA Data Center. 00607_ Machine disabled. 00607_ ANNOUNCEMENT: Intruder alert! Defend Scraptown! 00609_ Sneak attack on A0-MCA. 00609_ Destroyed Lgt. Ion Engine. 00609_ Destroyed Machine Analyzer. 00609_ A0-MCA system corrupted by crushing effect. 00609_ Wheel fried. 00609_ A0-MCA destroyed. 00614_ Acquired Prototype Processor. 00625_ Machine disabled. 00626_ The unstable cave ceiling collapses. 00626_ Crushed by falling debris. 00633_ Machine disabled. 00636_ Lgt. Ion Engine destroyed. Map ----- +----------------------------------------------------+ | ?????????????????????????????????????????????????? | | ?????????????????????????????????????????????????? | | ?????????????????????????????????????????????????? | | ?????????????????????????????????????????????????? | | ?????????????????????????????????????????????????? | | ?????????????????????????????????????????????????? | | ?????????????????????????????????????????????????? | | ?????????????????????????????????????????????????? | | ?????????????????????????????????????????????????? | | ?????????????????????????????????????????????????? | | ?????????????????????????????????????????????????? | | "????????????????????????????????????????????????? | | ""???????????????????????????????????????????????? | | ""?????????? ????????????????????????????????????? | | ""?? ????????????????????????????????????????????? | | ""????????????????????????????? "#??????????????? | | ""#????? ???????????????????? "#??????????????? | | ""#????" "????????#??????"?? "#??????????????? | | ""#???? ???????????????"" "#??????????????? | | ""#???? ???????????????"" "#??#???????????? | | ""###### ################"" "#??????????????? | | """""""""""""""""""""""""""" "## "???????????? | | """"""""""""""""""""""""" "" ???????????? | | c "#??????????????? | | "#??????????????? | | g @ "#?? ???????????? | | j #??????????????? | | p E #?????????????? | | """"""""""" """" """"" """"""p ##?????????????? | | ########### ########### ###### #??????????????? | | ?????#" #???? ???? #??????????????? | | #????#""" ""#???? "???? #??????????????? | | #???#""""% """#??? "???????????????????? | | #???#""" "#??? """"" "???????????????????? | | #???#""" """#??? ????? "#??????????????????? | | #???#""" """#??" ??????"#??????????????????? | | #??##"""""""""#??" ??????????????????????????? | | #???#"""""""""#??"???????????????????????????? | | " ###??#"""""""""#??"???????????????????????????? | | """"????#"""""""""#???????? ?????????????????????? | | ####??????#######????????????????????????????????? | | ????#????????????????????????????????????????????? | | ????????????????????????#????????????????????????? | | ?????????"????"#?????????????????????????????????? | | ??????????????????"??????????????????????????????? | | ?????????????????????????????????????????????????? | | ?????????????????????????????????????????????????? | | ?????????????????????????????????????????????????? | | ?????????????????????????????????????????????????? | | ?????????????????????????????????????????????????? | +----------------------------------------------------+ Best States ------------- Heat Dissipation 25 Energy Generation 10 Energy Capacity 125 Matter Stores 300 Matter Capacity 300 Sight Range 16 Terrain Scan Range 16 Terrain Scan Density 10 Evasion (%) 40 Item Schematics ----------------- None Robot Schematics ------------------ None Fabricated ------------ Nothing Repaired ---------- Nothing Alien Tech Used ----------------- None Achievements -------------- None Challenges ------------ None Game ------ Seed painworld Manual? 1 Play Time 00:07:35 Cumulative 21.0 hours Start 2025.09.11 @ 19:15:17 End 2025.09.12 @ 04:01:39 Sessions 2 Manual Loads 0 Difficulty Rogue Special Mode None Game No. 63 Rogue 63 Adventurer 0 Explorer 0 Win Type - Total 0 Types 0/0/0/0/0/0/0/0/0/0 Lore% 26 Gallery% 24 Achievement% 28 Wizard Run 0 Options --------- Layout 2 ASCII 0 Keyboard 0 Movement Mouse Keybinds 0 Fullscreen 2 Font 24/Smallcaps Map View 50x44 Zoom Use 0% Tactical HUD 1 Map Filters NONE Filters NONE Steam 1 RUN: 494c88a2-895f-4653-93a7-910aec70562a